[Event "Titled Tuesday Blitz November 07 Early 2023"]
[White "Kohler, Aran"]
[Black "Estrada Nieto, Julian"]
[WhiteFideId "1002856"]
[BlackFideId "5101018"]
[WhiteElo "2284"]
[BlackElo "2466"]
[Result "1-0"]
[Round "8"]
[TimeControl "180+1"]
[Date "2023.11.07"]
[WhiteClock "0:00:32"]
[BlackClock "0:00:12"]
[Board "145"]

1. d4 {[%clk 0:03:00]}  Nf6 {[%clk 0:02:58]} 2. c3 {[%clk 0:03:01]}  d5 {[%clk 0:02:54]} 3. Bg5 {[%clk 0:03:01]}  Ne4 {[%clk 0:02:46]} 4. h4 {[%clk 0:03:00]}  h6 {[%clk 0:02:40]} 5. Bf4 {[%clk 0:02:59]}  e6 {[%clk 0:02:34]} 6. Nd2 {[%clk 0:02:48]}  Bd6 {[%clk 0:02:31]} 7. Nxe4 {[%clk 0:02:40]}  dxe4 {[%clk 0:02:26]} 8. Bxd6 {[%clk 0:02:29]}  cxd6 {[%clk 0:02:26]} 9. e3 {[%clk 0:02:25]}  d5 {[%clk 0:02:24]} 10. f3 {[%clk 0:02:13]}  exf3 {[%clk 0:02:21]} 11. Nxf3 {[%clk 0:02:07]}  Nd7 {[%clk 0:02:18]} 12. Bd3 {[%clk 0:02:04]}  Qb6 {[%clk 0:02:14]} 13. Qe2 {[%clk 0:02:02]}  O-O {[%clk 0:02:13]} 14. O-O-O {[%clk 0:01:57]}  Re8 {[%clk 0:02:06]} 15. e4 {[%clk 0:01:53]}  dxe4 {[%clk 0:02:05]} 16. Qxe4 {[%clk 0:01:53]}  Nf6 {[%clk 0:02:05]} 17. Qf4 {[%clk 0:01:49]}  Bd7 {[%clk 0:01:45]} 18. Ne5 {[%clk 0:01:48]}  Bb5 {[%clk 0:01:43]} 19. Bc2 {[%clk 0:01:47]}  Qc7 {[%clk 0:01:31]} 20. g4 {[%clk 0:01:45]}  Nd5 {[%clk 0:01:22]} 21. Qe4 {[%clk 0:01:35]}  Nf6 {[%clk 0:01:22]} 22. Qg2 {[%clk 0:01:29]}  Bc6 {[%clk 0:01:11]} 23. Nxc6 {[%clk 0:01:28]}  Qxc6 {[%clk 0:01:11]} 24. Qxc6 {[%clk 0:01:27]}  bxc6 {[%clk 0:01:12]} 25. g5 {[%clk 0:01:27]}  Ng4 {[%clk 0:01:03]} 26. Rd2 {[%clk 0:01:27]}  h5 {[%clk 0:00:40]} 27. Bd1 {[%clk 0:01:24]}  e5 {[%clk 0:00:38]} 28. Bxg4 {[%clk 0:01:22]}  hxg4 {[%clk 0:00:37]} 29. dxe5 {[%clk 0:01:22]}  Rxe5 {[%clk 0:00:37]} 30. Rg1 {[%clk 0:01:22]}  Re4 {[%clk 0:00:32]} 31. Rdg2 {[%clk 0:01:22]}  Rae8 {[%clk 0:00:23]} 32. Rxg4 {[%clk 0:01:21]}  Re2 {[%clk 0:00:23]} 33. R1g2 {[%clk 0:01:17]}  Re1+ {[%clk 0:00:23]} 34. Kc2 {[%clk 0:01:18]}  g6 {[%clk 0:00:23]} 35. a4 {[%clk 0:01:15]}  a5 {[%clk 0:00:21]} 36. Rc4 {[%clk 0:01:11]}  R8e6 {[%clk 0:00:20]} 37. Rd2 {[%clk 0:01:10]}  Rh1 {[%clk 0:00:19]} 38. Rd8+ {[%clk 0:01:07]}  Kg7 {[%clk 0:00:18]} 39. Rc5 {[%clk 0:00:37]}  Rxh4 {[%clk 0:00:17]} 40. Rxa5 {[%clk 0:00:37]}  Rh2+ {[%clk 0:00:18]} 41. Kb3 {[%clk 0:00:36]}  Ree2 {[%clk 0:00:17]} 42. Raa8 {[%clk 0:00:36]}  Rxb2+ {[%clk 0:00:16]} 43. Kc4 {[%clk 0:00:33]}  Rh4+ {[%clk 0:00:15]} 44. Kc5 {[%clk 0:00:33]}  f6 {[%clk 0:00:12]} 45. Rd7# {[%clk 0:00:32]} 1-0


[Site "https://www.chess.com"]

[Event "Titled Tuesday Blitz November 07 Early 2023"]
[White "Ardila, Oscar Humberto"]
[Black "Gaikwad, Siddhant"]
[WhiteFideId "4404742"]
[BlackFideId "25010239"]
[WhiteElo "2313"]
[BlackElo "2210"]
[Result "1-0"]
[Round "8"]
[TimeControl "180+1"]
[Date "2023.11.07"]
[WhiteClock "0:00:21"]
[BlackClock "0:00:00"]
[Board "155"]

1. d4 {[%clk 0:02:59]}  Nf6 {[%clk 0:02:58]} 2. c4 {[%clk 0:03:00]}  g6 {[%clk 0:02:56]} 3. Nc3 {[%clk 0:03:00]}  d5 {[%clk 0:02:56]} 4. cxd5 {[%clk 0:03:00]}  Nxd5 {[%clk 0:02:57]} 5. e4 {[%clk 0:03:00]}  Nxc3 {[%clk 0:02:56]} 6. bxc3 {[%clk 0:03:01]}  Bg7 {[%clk 0:02:56]} 7. Bc4 {[%clk 0:03:01]}  c5 {[%clk 0:02:56]} 8. Ne2 {[%clk 0:03:02]}  Nc6 {[%clk 0:02:55]} 9. Be3 {[%clk 0:03:02]}  O-O {[%clk 0:02:55]} 10. O-O {[%clk 0:03:02]}  Bg4 {[%clk 0:02:55]} 11. f3 {[%clk 0:03:02]}  Bd7 {[%clk 0:02:54]} 12. Qd2 {[%clk 0:03:01]}  Rc8 {[%clk 0:02:53]} 13. Rac1 {[%clk 0:03:01]}  Qa5 {[%clk 0:02:53]} 14. Rfd1 {[%clk 0:02:57]}  cxd4 {[%clk 0:02:52]} 15. cxd4 {[%clk 0:02:52]}  Qxd2 {[%clk 0:02:51]} 16. Rxd2 {[%clk 0:02:49]}  Na5 {[%clk 0:02:51]} 17. Rdc2 {[%clk 0:02:36]}  Nxc4 {[%clk 0:02:39]} 18. Rxc4 {[%clk 0:02:36]}  Rxc4 {[%clk 0:02:39]} 19. Rxc4 {[%clk 0:02:36]}  Bb5 {[%clk 0:02:39]} 20. Rc2 {[%clk 0:02:36]}  Bxe2 {[%clk 0:02:39]} 21. Rxe2 {[%clk 0:02:36]}  Rc8 {[%clk 0:02:40]} 22. Rb2 {[%clk 0:02:35]}  b6 {[%clk 0:02:37]} 23. Kf2 {[%clk 0:02:32]}  Rc4 {[%clk 0:02:36]} 24. Rd2 {[%clk 0:02:32]}  f5 {[%clk 0:02:30]} 25. Ke2 {[%clk 0:02:31]}  Kf7 {[%clk 0:02:29]} 26. Kd3 {[%clk 0:02:28]}  Ra4 {[%clk 0:02:27]} 27. Bf2 {[%clk 0:02:18]}  b5 {[%clk 0:02:18]} 28. Rb2 {[%clk 0:02:16]}  a6 {[%clk 0:02:13]} 29. g4 {[%clk 0:02:11]}  Ke6 {[%clk 0:02:10]} 30. d5+ {[%clk 0:02:05]}  Kd6 {[%clk 0:02:03]} 31. Bg3+ {[%clk 0:02:03]}  Be5 {[%clk 0:01:48]} 32. gxf5 {[%clk 0:01:56]}  gxf5 {[%clk 0:01:43]} 33. Rc2 {[%clk 0:01:52]}  f4 {[%clk 0:01:36]} 34. Bf2 {[%clk 0:01:49]}  Ra3+ {[%clk 0:01:35]} 35. Ke2 {[%clk 0:01:49]}  Kd7 {[%clk 0:01:26]} 36. Bc5 {[%clk 0:01:43]}  Ra4 {[%clk 0:01:12]} 37. Bb6 {[%clk 0:01:43]}  Ra3 {[%clk 0:00:59]} 38. h4 {[%clk 0:01:42]}  a5 {[%clk 0:00:58]} 39. Bc5 {[%clk 0:01:34]}  b4 {[%clk 0:00:57]} 40. h5 {[%clk 0:01:32]}  Bd6 {[%clk 0:00:48]} 41. Bd4 {[%clk 0:01:27]}  e5 {[%clk 0:00:46]} 42. dxe6+ {[%clk 0:01:19]}  Kxe6 {[%clk 0:00:47]} 43. h6 {[%clk 0:00:41]}  a4 {[%clk 0:00:45]} 44. Kf2 {[%clk 0:00:37]}  b3 {[%clk 0:00:37]} 45. axb3 {[%clk 0:00:37]}  axb3 {[%clk 0:00:37]} 46. Rc6 {[%clk 0:00:34]}  Ra2+ {[%clk 0:00:22]} 47. Kg1 {[%clk 0:00:35]}  b2 {[%clk 0:00:18]} 48. Bxb2 {[%clk 0:00:31]}  Rxb2 {[%clk 0:00:18]} 49. Ra6 {[%clk 0:00:31]}  Ke5 {[%clk 0:00:17]} 50. Ra5+ {[%clk 0:00:31]}  Kf6 {[%clk 0:00:15]} 51. Rd5 {[%clk 0:00:29]}  Be5 {[%clk 0:00:11]} 52. Rd7 {[%clk 0:00:28]}  Kg6 {[%clk 0:00:10]} 53. Re7 {[%clk 0:00:27]}  Bd4+ {[%clk 0:00:09]} 54. Kh1 {[%clk 0:00:26]}  Kxh6 {[%clk 0:00:08]} 55. Rf7 {[%clk 0:00:25]}  Kg5 {[%clk 0:00:07]} 56. Rf5+ {[%clk 0:00:25]}  Kg6 {[%clk 0:00:06]} 57. Rxf4 {[%clk 0:00:25]}  Rb1+ {[%clk 0:00:07]} 58. Kg2 {[%clk 0:00:25]}  Rg1+ {[%clk 0:00:06]} 59. Kh3 {[%clk 0:00:25]}  Be5 {[%clk 0:00:05]} 60. Rf5 {[%clk 0:00:23]}  Rh1+ {[%clk 0:00:01]} 61. Kg2 {[%clk 0:00:23]}  Rh2+ {[%clk 0:00:01]} 62. Kg1 {[%clk 0:00:22]}  Re2 {[%clk 0:00:02]} 63. Rxe5 {[%clk 0:00:21]}  h5 {[%clk 0:00:03]} 64. Rd5 {[%clk 0:00:21]}  Kf6 {[%clk 0:00:03]} 65. Kf1 {[%clk 0:00:21]}  Rb2 {[%clk 0:00:02]} 66. Rxh5 {[%clk 0:00:21]}  Kg6 {[%clk 0:00:00]} 67. Rf5 {[%clk 0:00:21]} 1-0


[Site "https://www.chess.com"]

[Event "Titled Tuesday Blitz November 07 Early 2023"]
[White "Pumpkin_in_moonlight"]
[Black "Smirnov, Timofey"]
[BlackFideId "24176427"]
[WhiteElo "2312"]
[BlackElo "2196"]
[Result "1-0"]
[Round "8"]
[TimeControl "180+1"]
[Date "2023.11.07"]
[WhiteClock "0:01:04"]
[BlackClock "0:01:36"]
[Board "156"]

1. e4 {[%clk 0:03:00]}  e5 {[%clk 0:02:59]} 2. Nf3 {[%clk 0:02:59]}  Nf6 {[%clk 0:02:58]} 3. Nc3 {[%clk 0:02:53]}  Bb4 {[%clk 0:02:54]} 4. Bc4 {[%clk 0:02:40]}  O-O {[%clk 0:02:51]} 5. Qe2 {[%clk 0:02:26]}  d6 {[%clk 0:02:49]} 6. O-O {[%clk 0:02:20]}  Nc6 {[%clk 0:02:49]} 7. h3 {[%clk 0:02:13]}  a6 {[%clk 0:02:45]} 8. Nd5 {[%clk 0:02:07]}  Bc5 {[%clk 0:02:39]} 9. d4 {[%clk 0:01:31]}  Nxd4 {[%clk 0:02:33]} 10. Nxd4 {[%clk 0:01:30]}  Bxd4 {[%clk 0:02:34]} 11. Bg5 {[%clk 0:01:27]}  Be6 {[%clk 0:02:03]} 12. Nxf6+ {[%clk 0:01:12]}  gxf6 {[%clk 0:02:04]} 13. Bh6 {[%clk 0:01:11]}  Re8 {[%clk 0:01:59]} 14. Bxe6 {[%clk 0:01:07]}  fxe6 {[%clk 0:02:00]} 15. Qg4+ {[%clk 0:01:06]}  Kf7 {[%clk 0:01:36]} 16. Qg7# {[%clk 0:01:04]} 1-0


[Site "https://www.chess.com"]

[Event "Titled Tuesday Blitz November 07 Early 2023"]
[White "Vila Dupla, Aurelio"]
[Black "Osmonbekov, Talaibek"]
[WhiteFideId "2203383"]
[BlackFideId "2017253"]
[WhiteElo "2174"]
[BlackElo "2311"]
[Result "1-0"]
[Round "8"]
[TimeControl "180+1"]
[Date "2023.11.07"]
[WhiteClock "0:00:34"]
[BlackClock "0:00:00"]
[Board "157"]

1. Nf3 {[%clk 0:03:00]}  f5 {[%clk 0:02:56]} 2. c4 {[%clk 0:03:00]}  Nf6 {[%clk 0:02:57]} 3. g3 {[%clk 0:03:00]}  e6 {[%clk 0:02:55]} 4. Bg2 {[%clk 0:03:00]}  Be7 {[%clk 0:02:56]} 5. O-O {[%clk 0:03:00]}  O-O {[%clk 0:02:56]} 6. b3 {[%clk 0:03:00]}  d6 {[%clk 0:02:56]} 7. Bb2 {[%clk 0:03:00]}  e5 {[%clk 0:02:57]} 8. Nc3 {[%clk 0:02:58]}  a5 {[%clk 0:02:51]} 9. a3 {[%clk 0:02:57]}  Na6 {[%clk 0:02:50]} 10. Rb1 {[%clk 0:02:49]}  Qe8 {[%clk 0:02:45]} 11. Ba1 {[%clk 0:02:42]}  Qh5 {[%clk 0:02:36]} 12. b4 {[%clk 0:02:42]}  f4 {[%clk 0:02:30]} 13. c5 {[%clk 0:02:24]}  Bh3 {[%clk 0:02:25]} 14. cxd6 {[%clk 0:02:16]}  cxd6 {[%clk 0:02:23]} 15. Qb3+ {[%clk 0:02:15]}  Kh8 {[%clk 0:02:20]} 16. Nd5 {[%clk 0:02:02]}  Be6 {[%clk 0:01:44]} 17. Nxf6 {[%clk 0:01:59]}  Qf7 {[%clk 0:01:32]} 18. Ng5 {[%clk 0:01:44]}  Bxb3 {[%clk 0:01:32]} 19. Nxf7+ {[%clk 0:01:43]}  Bxf7 {[%clk 0:01:33]} 20. Nd5 {[%clk 0:01:39]}  Bd8 {[%clk 0:01:23]} 21. gxf4 {[%clk 0:01:38]}  axb4 {[%clk 0:01:01]} 22. axb4 {[%clk 0:01:35]}  Bxd5 {[%clk 0:00:53]} 23. Bxd5 {[%clk 0:01:32]}  Rxf4 {[%clk 0:00:48]} 24. Bxb7 {[%clk 0:01:27]}  Ra7 {[%clk 0:00:48]} 25. Bf3 {[%clk 0:01:16]}  Bb6 {[%clk 0:00:35]} 26. Rfc1 {[%clk 0:01:09]}  g6 {[%clk 0:00:25]} 27. Rc6 {[%clk 0:00:55]}  Rxb4 {[%clk 0:00:20]} 28. Rxb4 {[%clk 0:00:46]}  Nxb4 {[%clk 0:00:20]} 29. Rxb6 {[%clk 0:00:46]}  Rxa1+ {[%clk 0:00:20]} 30. Kg2 {[%clk 0:00:47]}  Nc2 {[%clk 0:00:18]} 31. e3 {[%clk 0:00:44]}  Ne1+ {[%clk 0:00:12]} 32. Kg3 {[%clk 0:00:43]}  Nxf3 {[%clk 0:00:12]} 33. Kxf3 {[%clk 0:00:43]}  d5 {[%clk 0:00:13]} 34. Rb5 {[%clk 0:00:40]}  e4+ {[%clk 0:00:12]} 35. Ke2 {[%clk 0:00:40]}  Kg7 {[%clk 0:00:06]} 36. Rxd5 {[%clk 0:00:39]}  Rh1 {[%clk 0:00:04]} 37. Re5 {[%clk 0:00:39]}  Rxh2 {[%clk 0:00:03]} 38. Rxe4 {[%clk 0:00:39]}  h5 {[%clk 0:00:00]} 39. Kf3 {[%clk 0:00:34]} 1-0


[Site "https://www.chess.com"]

[Event "Titled Tuesday Blitz November 07 Early 2023"]
[White "knightinshiningarmour16"]
[Black "Mazzilli, Piero"]
[BlackFideId "807087"]
[WhiteElo "2172"]
[BlackElo "2308"]
[Result "0-1"]
[Round "8"]
[TimeControl "180+1"]
[Date "2023.11.07"]
[WhiteClock "0:01:57"]
[BlackClock "0:00:28"]
[Board "158"]

1. d4 {[%clk 0:02:59]}  d5 {[%clk 0:02:59]} 2. Nf3 {[%clk 0:02:58]}  c6 {[%clk 0:03:00]} 3. c4 {[%clk 0:02:57]}  Nf6 {[%clk 0:02:57]} 4. cxd5 {[%clk 0:02:57]}  cxd5 {[%clk 0:02:55]} 5. Nc3 {[%clk 0:02:58]}  Nc6 {[%clk 0:02:53]} 6. Bf4 {[%clk 0:02:57]}  a6 {[%clk 0:02:51]} 7. e3 {[%clk 0:02:57]}  e6 {[%clk 0:02:49]} 8. Bd3 {[%clk 0:02:57]}  Be7 {[%clk 0:02:49]} 9. O-O {[%clk 0:02:57]}  O-O {[%clk 0:02:49]} 10. a3 {[%clk 0:02:57]}  Bd7 {[%clk 0:02:48]} 11. Na4 {[%clk 0:02:57]}  Ne4 {[%clk 0:02:31]} 12. Bxe4 {[%clk 0:02:55]}  dxe4 {[%clk 0:02:30]} 13. Nd2 {[%clk 0:02:56]}  f5 {[%clk 0:02:19]} 14. b4 {[%clk 0:02:54]}  a5 {[%clk 0:02:07]} 15. Nc5 {[%clk 0:02:51]}  axb4 {[%clk 0:01:57]} 16. axb4 {[%clk 0:02:47]}  Rxa1 {[%clk 0:01:53]} 17. Qxa1 {[%clk 0:02:46]}  Nxb4 {[%clk 0:01:51]} 18. Nxb7 {[%clk 0:02:41]}  Qb6 {[%clk 0:01:39]} 19. Na5 {[%clk 0:02:29]}  Ra8 {[%clk 0:01:10]} 20. Nac4 {[%clk 0:02:27]}  Rxa1 {[%clk 0:00:57]} 21. Nxb6 {[%clk 0:02:26]}  Rxf1+ {[%clk 0:00:55]} 22. Kxf1 {[%clk 0:02:27]}  Bb5+ {[%clk 0:00:53]} 23. Nbc4 {[%clk 0:02:27]}  Nd3 {[%clk 0:00:39]} 24. Bc7 {[%clk 0:02:19]}  Nb2 {[%clk 0:00:34]} 25. Ke1 {[%clk 0:02:06]}  Nxc4 {[%clk 0:00:32]} 26. Nb3 {[%clk 0:02:04]}  Bb4+ {[%clk 0:00:30]} 27. Kd1 {[%clk 0:01:57]}  Ba4 {[%clk 0:00:28]} 0-1


[Site "https://www.chess.com"]

[Event "Titled Tuesday Blitz November 07 Early 2023"]
[White "Rasmussen, Casper"]
[Black "Mohammadian,Mohammad"]
[WhiteFideId "1402005"]
[BlackFideId "12566055"]
[WhiteElo "2295"]
[BlackElo "1912"]
[Result "1-0"]
[Round "8"]
[TimeControl "180+1"]
[Date "2023.11.07"]
[WhiteClock "0:00:14"]
[BlackClock "0:00:00"]
[Board "161"]

1. c4 {[%clk 0:02:59]}  Nf6 {[%clk 0:02:56]} 2. g3 {[%clk 0:02:58]}  g6 {[%clk 0:02:56]} 3. Bg2 {[%clk 0:02:59]}  Bg7 {[%clk 0:02:55]} 4. Nc3 {[%clk 0:02:59]}  c6 {[%clk 0:02:54]} 5. d3 {[%clk 0:02:59]}  d5 {[%clk 0:02:54]} 6. cxd5 {[%clk 0:03:00]}  cxd5 {[%clk 0:02:53]} 7. Bg5 {[%clk 0:03:00]}  e6 {[%clk 0:02:50]} 8. Qd2 {[%clk 0:02:55]}  Nc6 {[%clk 0:02:48]} 9. Nf3 {[%clk 0:02:55]}  Qb6 {[%clk 0:02:46]} 10. O-O {[%clk 0:02:48]}  O-O {[%clk 0:02:44]} 11. a3 {[%clk 0:02:44]}  Re8 {[%clk 0:02:41]} 12. Rab1 {[%clk 0:02:44]}  a6 {[%clk 0:02:38]} 13. b4 {[%clk 0:02:44]}  Bd7 {[%clk 0:02:28]} 14. Na4 {[%clk 0:02:43]}  Qc7 {[%clk 0:02:19]} 15. Nc5 {[%clk 0:02:42]}  b6 {[%clk 0:02:09]} 16. Nxd7 {[%clk 0:02:26]}  Qxd7 {[%clk 0:02:08]} 17. Rfc1 {[%clk 0:02:24]}  Rec8 {[%clk 0:02:05]} 18. Rd1 {[%clk 0:02:12]}  Ne7 {[%clk 0:01:53]} 19. Ne5 {[%clk 0:02:08]}  Qe8 {[%clk 0:01:49]} 20. Rdc1 {[%clk 0:01:49]}  Nf5 {[%clk 0:01:48]} 21. Rxc8 {[%clk 0:01:37]}  Rxc8 {[%clk 0:01:47]} 22. Rc1 {[%clk 0:01:34]}  Nd7 {[%clk 0:01:39]} 23. Nxd7 {[%clk 0:01:06]}  Qxd7 {[%clk 0:01:38]} 24. Rxc8+ {[%clk 0:01:05]}  Qxc8 {[%clk 0:01:37]} 25. e4 {[%clk 0:01:06]}  dxe4 {[%clk 0:01:34]} 26. dxe4 {[%clk 0:01:06]}  Nd4 {[%clk 0:01:27]} 27. Be3 {[%clk 0:01:00]}  e5 {[%clk 0:01:24]} 28. h3 {[%clk 0:00:57]}  b5 {[%clk 0:01:17]} 29. Kh2 {[%clk 0:00:57]}  Qc4 {[%clk 0:01:14]} 30. f4 {[%clk 0:00:52]}  exf4 {[%clk 0:01:07]} 31. gxf4 {[%clk 0:00:51]}  Ne6 {[%clk 0:00:50]} 32. e5 {[%clk 0:00:26]}  Qc7 {[%clk 0:00:47]} 33. Qd6 {[%clk 0:00:19]}  Qxd6 {[%clk 0:00:41]} 34. exd6 {[%clk 0:00:20]}  Kf8 {[%clk 0:00:40]} 35. Bb7 {[%clk 0:00:19]}  Ke8 {[%clk 0:00:32]} 36. Bxa6 {[%clk 0:00:19]}  Kd7 {[%clk 0:00:30]} 37. Bc5 {[%clk 0:00:19]}  Nxf4 {[%clk 0:00:28]} 38. Bxb5+ {[%clk 0:00:18]}  Kc8 {[%clk 0:00:24]} 39. d7+ {[%clk 0:00:16]}  Kc7 {[%clk 0:00:13]} 40. Bb6+ {[%clk 0:00:16]}  Kxb6 {[%clk 0:00:12]} 41. d8=Q+ {[%clk 0:00:16]}  Kxb5 {[%clk 0:00:12]} 42. Qd7+ {[%clk 0:00:13]}  Kc4 {[%clk 0:00:06]} 43. Qc7+ {[%clk 0:00:13]}  Kb3 {[%clk 0:00:03]} 44. Qxf4 {[%clk 0:00:14]}  Kxa3 {[%clk 0:00:00]} 45. b5 {[%clk 0:00:14]} 1-0


[Site "https://www.chess.com"]

[Event "Titled Tuesday Blitz November 07 Early 2023"]
[White "Belov, Alexei"]
[Black "parintele_chess"]
[WhiteFideId "4128206"]
[WhiteElo "2573"]
[BlackElo "2223"]
[Result "1-0"]
[Round "8"]
[TimeControl "180+1"]
[Date "2023.11.07"]
[WhiteClock "0:01:35"]
[BlackClock "0:00:00"]
[Board "162"]

1. e4 {[%clk 0:03:00]}  c5 {[%clk 0:02:59]} 2. Nf3 {[%clk 0:02:46]}  Nc6 {[%clk 0:02:58]} 3. d4 {[%clk 0:02:46]}  cxd4 {[%clk 0:02:59]} 4. Nxd4 {[%clk 0:02:47]}  Nf6 {[%clk 0:02:59]} 5. Nc3 {[%clk 0:02:47]}  h5 {[%clk 0:02:59]} 6. Be2 {[%clk 0:02:46]}  h4 {[%clk 0:02:48]} 7. h3 {[%clk 0:02:45]}  e5 {[%clk 0:02:47]} 8. Ndb5 {[%clk 0:02:43]}  d6 {[%clk 0:02:46]} 9. Bg5 {[%clk 0:02:42]}  Be7 {[%clk 0:02:43]} 10. Bxf6 {[%clk 0:02:42]}  gxf6 {[%clk 0:02:31]} 11. Nd5 {[%clk 0:02:41]}  Qa5+ {[%clk 0:02:24]} 12. c3 {[%clk 0:02:40]}  Kf8 {[%clk 0:01:29]} 13. Nxe7 {[%clk 0:02:12]}  Nxe7 {[%clk 0:01:27]} 14. Qxd6 {[%clk 0:02:11]}  Be6 {[%clk 0:01:22]} 15. Nc7 {[%clk 0:02:08]}  Rc8 {[%clk 0:01:12]} 16. Nxe6+ {[%clk 0:02:03]}  fxe6 {[%clk 0:01:13]} 17. Qxe6 {[%clk 0:02:00]}  Rc6 {[%clk 0:01:08]} 18. Qg4 {[%clk 0:01:57]}  Rg8 {[%clk 0:00:50]} 19. Qxh4 {[%clk 0:01:46]}  Rxg2 {[%clk 0:00:49]} 20. Kf1 {[%clk 0:01:45]}  Rg8 {[%clk 0:00:39]} 21. Rd1 {[%clk 0:01:38]}  Qc7 {[%clk 0:00:19]} 22. Qh6+ {[%clk 0:01:36]}  Ke8 {[%clk 0:00:00]} 23. Bh5+ {[%clk 0:01:35]} 1-0


[Site "https://www.chess.com"]

[Event "Titled Tuesday Blitz November 07 Early 2023"]
[White "Skaric, Djuro"]
[Black "Sviridova, Vlada"]
[WhiteFideId "934569"]
[BlackFideId "24109606"]
[WhiteElo "2324"]
[BlackElo "2196"]
[Result "1-0"]
[Round "8"]
[TimeControl "180+1"]
[Date "2023.11.07"]
[WhiteClock "0:01:15"]
[BlackClock "0:00:00"]
[Board "163"]

1. g3 {[%clk 0:03:00]}  d5 {[%clk 0:02:59]} 2. Bg2 {[%clk 0:03:01]}  Nf6 {[%clk 0:02:58]} 3. d3 {[%clk 0:03:02]}  c6 {[%clk 0:02:59]} 4. Nf3 {[%clk 0:03:02]}  Bg4 {[%clk 0:02:49]} 5. O-O {[%clk 0:03:03]}  e6 {[%clk 0:02:49]} 6. h3 {[%clk 0:03:04]}  Bh5 {[%clk 0:02:48]} 7. Nc3 {[%clk 0:03:04]}  Be7 {[%clk 0:02:47]} 8. Bf4 {[%clk 0:03:05]}  Nbd7 {[%clk 0:02:46]} 9. Ne5 {[%clk 0:03:05]}  O-O {[%clk 0:02:41]} 10. g4 {[%clk 0:03:02]}  Bg6 {[%clk 0:02:40]} 11. e4 {[%clk 0:03:01]}  Nxe5 {[%clk 0:02:38]} 12. Bxe5 {[%clk 0:03:01]}  Nd7 {[%clk 0:02:39]} 13. Bf4 {[%clk 0:03:01]}  e5 {[%clk 0:02:38]} 14. Bd2 {[%clk 0:03:00]}  d4 {[%clk 0:02:37]} 15. Ne2 {[%clk 0:03:00]}  h5 {[%clk 0:02:25]} 16. f4 {[%clk 0:02:57]}  hxg4 {[%clk 0:02:09]} 17. f5 {[%clk 0:02:57]}  gxh3 {[%clk 0:02:01]} 18. Bf3 {[%clk 0:02:34]}  Bh7 {[%clk 0:01:47]} 19. Kh2 {[%clk 0:02:34]}  Bg5 {[%clk 0:01:37]} 20. Rg1 {[%clk 0:02:34]}  Bxd2 {[%clk 0:01:35]} 21. Qxd2 {[%clk 0:02:34]}  Kh8 {[%clk 0:01:00]} 22. Rg3 {[%clk 0:02:33]}  Rg8 {[%clk 0:00:50]} 23. Rxh3 {[%clk 0:02:32]}  g5 {[%clk 0:00:50]} 24. Rg1 {[%clk 0:02:27]}  Rg7 {[%clk 0:00:31]} 25. Ng3 {[%clk 0:02:17]}  g4 {[%clk 0:00:11]} 26. Nh5 {[%clk 0:02:16]}  gxh3 {[%clk 0:00:11]} 27. Rxg7 {[%clk 0:02:15]}  Qh4 {[%clk 0:00:11]} 28. Qh6 {[%clk 0:01:40]}  Qf2+ {[%clk 0:00:12]} 29. Kxh3 {[%clk 0:01:40]}  Qxf3+ {[%clk 0:00:12]} 30. Kh4 {[%clk 0:01:40]}  Qh1+ {[%clk 0:00:11]} 31. Kg4 {[%clk 0:01:25]}  Qg1+ {[%clk 0:00:06]} 32. Ng3 {[%clk 0:01:22]}  Qd1+ {[%clk 0:00:05]} 33. Kh4 {[%clk 0:01:20]}  Nf8 {[%clk 0:00:00]} 34. Qf6 {[%clk 0:01:15]} 1-0


[Site "https://www.chess.com"]

[Event "Titled Tuesday Blitz November 07 Early 2023"]
[White "DonCiao"]
[Black "Vifleemskaia, Svetlana"]
[BlackFideId "4129490"]
[WhiteElo "2136"]
[BlackElo "2270"]
[Result "1/2-1/2"]
[Round "8"]
[TimeControl "180+1"]
[Date "2023.11.07"]
[WhiteClock "0:00:13"]
[BlackClock "0:00:07"]
[Board "164"]

1. c4 {[%clk 0:03:00]}  c5 {[%clk 0:02:59]} 2. g3 {[%clk 0:03:00]}  Nf6 {[%clk 0:02:59]} 3. Bg2 {[%clk 0:03:01]}  d5 {[%clk 0:02:59]} 4. cxd5 {[%clk 0:02:59]}  Nxd5 {[%clk 0:03:00]} 5. Nc3 {[%clk 0:02:59]}  Nc7 {[%clk 0:03:00]} 6. Nf3 {[%clk 0:02:59]}  Nc6 {[%clk 0:03:00]} 7. O-O {[%clk 0:02:58]}  e5 {[%clk 0:03:01]} 8. a3 {[%clk 0:02:58]}  Be7 {[%clk 0:03:01]} 9. b4 {[%clk 0:02:58]}  cxb4 {[%clk 0:02:57]} 10. axb4 {[%clk 0:02:56]}  Nxb4 {[%clk 0:02:46]} 11. Nxe5 {[%clk 0:02:51]}  O-O {[%clk 0:02:46]} 12. Ba3 {[%clk 0:02:42]}  Nba6 {[%clk 0:02:28]} 13. Bxe7 {[%clk 0:02:40]}  Qxe7 {[%clk 0:02:28]} 14. d4 {[%clk 0:02:39]}  Qb4 {[%clk 0:02:10]} 15. Qc2 {[%clk 0:02:18]}  Qxd4 {[%clk 0:02:06]} 16. Nf3 {[%clk 0:02:08]}  Qc5 {[%clk 0:02:01]} 17. Rfc1 {[%clk 0:02:06]}  Rb8 {[%clk 0:02:01]} 18. Qb3 {[%clk 0:02:05]}  Qb4 {[%clk 0:01:58]} 19. Qxb4 {[%clk 0:02:03]}  Nxb4 {[%clk 0:01:57]} 20. Rxa7 {[%clk 0:02:03]}  Ncd5 {[%clk 0:01:55]} 21. Nxd5 {[%clk 0:02:02]}  Nxd5 {[%clk 0:01:56]} 22. Nd4 {[%clk 0:02:01]}  Be6 {[%clk 0:01:35]} 23. e4 {[%clk 0:01:48]}  Nf6 {[%clk 0:01:25]} 24. Nxe6 {[%clk 0:01:47]}  fxe6 {[%clk 0:01:24]} 25. Rc7 {[%clk 0:01:47]}  Rf7 {[%clk 0:01:22]} 26. Rc4 {[%clk 0:01:26]}  e5 {[%clk 0:01:19]} 27. Rb4 {[%clk 0:01:23]}  Ng4 {[%clk 0:01:11]} 28. f3 {[%clk 0:01:20]}  Nf6 {[%clk 0:00:59]} 29. Bh3 {[%clk 0:01:19]}  Re7 {[%clk 0:00:57]} 30. Rb6 {[%clk 0:01:14]}  Kf7 {[%clk 0:00:55]} 31. Kf2 {[%clk 0:01:13]}  g5 {[%clk 0:00:44]} 32. Bf1 {[%clk 0:01:12]}  g4 {[%clk 0:00:42]} 33. Bc4+ {[%clk 0:01:12]}  Kg7 {[%clk 0:00:41]} 34. Ra5 {[%clk 0:01:03]}  gxf3 {[%clk 0:00:40]} 35. Kxf3 {[%clk 0:01:02]}  Rc8 {[%clk 0:00:39]} 36. Rb4 {[%clk 0:00:58]}  Rec7 {[%clk 0:00:38]} 37. Be6 {[%clk 0:00:48]}  Rc3+ {[%clk 0:00:32]} 38. Kg2 {[%clk 0:00:47]}  R8c7 {[%clk 0:00:29]} 39. Rxe5 {[%clk 0:00:46]}  Re7 {[%clk 0:00:28]} 40. h4 {[%clk 0:00:37]}  h6 {[%clk 0:00:28]} 41. Rbb5 {[%clk 0:00:29]}  Re3 {[%clk 0:00:21]} 42. Bf5 {[%clk 0:00:28]}  Rxe5 {[%clk 0:00:15]} 43. Rxe5 {[%clk 0:00:28]}  Kf7 {[%clk 0:00:15]} 44. Rb5 {[%clk 0:00:26]}  Nxe4 {[%clk 0:00:12]} 45. Rxb7+ {[%clk 0:00:25]}  Kf6 {[%clk 0:00:11]} 46. Bxe4 {[%clk 0:00:25]}  Rxe4 {[%clk 0:00:11]} 47. Rb6+ {[%clk 0:00:25]}  Kg7 {[%clk 0:00:10]} 48. Kh3 {[%clk 0:00:25]}  Rd4 {[%clk 0:00:11]} 49. h5 {[%clk 0:00:23]}  Rd5 {[%clk 0:00:08]} 50. Rg6+ {[%clk 0:00:22]}  Kh7 {[%clk 0:00:08]} 51. g4 {[%clk 0:00:22]}  Rd3+ {[%clk 0:00:08]} 52. Kg2 {[%clk 0:00:21]}  Rd2+ {[%clk 0:00:08]} 53. Kf3 {[%clk 0:00:21]}  Rd1 {[%clk 0:00:07]} 54. Ke4 {[%clk 0:00:20]}  Rf1 {[%clk 0:00:06]} 55. Ke5 {[%clk 0:00:20]}  Rf7 {[%clk 0:00:06]} 56. Ke6 {[%clk 0:00:20]}  Ra7 {[%clk 0:00:06]} 57. g5 {[%clk 0:00:18]}  hxg5 {[%clk 0:00:06]} 58. Rxg5 {[%clk 0:00:17]}  Ra6+ {[%clk 0:00:06]} 59. Kf7 {[%clk 0:00:16]}  Ra7+ {[%clk 0:00:06]} 60. Kf8 {[%clk 0:00:16]}  Ra8+ {[%clk 0:00:06]} 61. Kf7 {[%clk 0:00:15]}  Ra7+ {[%clk 0:00:06]} 62. Kf8 {[%clk 0:00:12]}  Ra8+ {[%clk 0:00:07]} 63. Kf7 {[%clk 0:00:13]}  Ra7+ {[%clk 0:00:07]} 1/2-1/2


[Site "https://www.chess.com"]